{"text_format":"2","workbook":"xlsx","n_sheets":1,"sheets":["논문발표 현황(2024년)"],"not_rendered":{"charts":0,"images":0,"macros":0,"external_links":1,"defined_names":1,"comments":0,"pivot_tables":0},"unopened":[],"bounds":{"document_bytes":16777216,"sheet_cells":100000,"run_cost":"one","rows_first":2000,"rows_last":500,"rows_between":2000,"halvings":0,"cell_chars":16384,"cell_head_chars":4096},"cells_cut":0,"cells_raw":0,"read":"whole","date_system":"1900"}

{"sheet":"논문발표 현황(2024년)","index":0,"n_rows":222,"n_cols":4,"rows_kept":222,"cut":false,"hidden":false,"merged":[]}
["구분","논문제목","등록일","발표기관"]
[1,"Dismantling Quantity Estimation for Nuclear Power Plant Scan-to-BIM vs Conventional Method","2024.03.20","KSCE Journal of Civil Engineering"]
[2,"설계초과지진을 고려한 가압기 밀림관의 변형률기반 구조건전성평가",{"$f":"VLOOKUP(B3,[1]Sheet1!$B$1:$C$153,2,FALSE)","v":"2024.03.20"},"대한기계학회 신뢰성부문 2024년도 춘계학술대회"]
[3,"배관의 환경피로가 가상파단위치 선정에 미치는 영향",{"$f":"VLOOKUP(B4,[1]Sheet1!$B$1:$C$153,2,FALSE)","v":"2024.03.21"},"대한기계학회 신뢰성부문 춘계학술대회"]
[4,"보통중심가새골조의 내진보강 시 적용을 위한 자가복원형 점성감쇠기 시스템 개발",{"$f":"VLOOKUP(B5,[1]Sheet1!$B$1:$C$153,2,FALSE)","v":"2024.04.22"},"한국구조물진단유지관리공학회"]
[5,"분산형 전원의 주파수 안정도 판별 기준 및 그리드포밍 기술 효용성 고찰",{"$f":"VLOOKUP(B6,[1]Sheet1!$B$1:$C$153,2,FALSE)","v":"2024.04.30"},"한국수소및신에너지학회 2024년 춘계학술대회 논문집"]
[6,"수소 수요를 고려한 수전해 기반의 on-site 수소 충전소의 최적 스케쥴링 모델 개발",{"$f":"VLOOKUP(B7,[1]Sheet1!$B$1:$C$153,2,FALSE)","v":"2024.04.30"},"대한방사선방어학회 2024년 춘계학술대회"]
[7,"원자력발전소 3D 위치기반 실시간 능동형 방사선안전관리 플랫폼 개발",{"$f":"VLOOKUP(B8,[1]Sheet1!$B$1:$C$153,2,FALSE)","v":"2024.04.30"},"대한전기학회 전력기술부문회 춘계학술대회"]
[8,"원자력발전소의 SC구조 모듈화 설계",{"$f":"VLOOKUP(B9,[1]Sheet1!$B$1:$C$153,2,FALSE)","v":"2024.04.30"},"대한전기학회 전력기술부문회 춘계학술대회"]
[9,"수소융복합 마이크로그리드 계통 안정화 방안 연구",{"$f":"VLOOKUP(B10,[1]Sheet1!$B$1:$C$153,2,FALSE)","v":"2024.05.10"},"한국교량및구조공학회"]
[10,"Diverse CSS 계통의 민감도 분석을 통한 APR1400 원전의 Level 2 PSA에 미치는 영향검토",{"$f":"VLOOKUP(B11,[1]Sheet1!$B$1:$C$153,2,FALSE)","v":"2024.05.21"},"2024 한국원자력학회 춘계학술대회"]
[11,"방사선작업종사자 피폭선량 평가를 위한 출력운전 및 계획예방정비 기간 냉각계통 방사선원항 평가",{"$f":"VLOOKUP(B12,[1]Sheet1!$B$1:$C$153,2,FALSE)","v":"2024.05.21"},"2024 한국원자력학회 춘계학술대회"]
[12,"크러드 침적과 방사화 열이 내장형 제어봉구동장치에 미치는 열적 영향",{"$f":"VLOOKUP(B13,[1]Sheet1!$B$1:$C$153,2,FALSE)","v":"2024.05.21"},"2024 한국원자력학회 춘계학술대회"]
[13,"한국전력기술 고유노형 반디의 화학 및 체적제어계통 소형화 설계",{"$f":"VLOOKUP(B14,[1]Sheet1!$B$1:$C$153,2,FALSE)","v":"2024.05.21"},"2024 한국원자력학회 춘계학술대회"]
[14,"혁신형 SMR을 위한 사고관리계획서 내 가압사고 비교분석",{"$f":"VLOOKUP(B15,[1]Sheet1!$B$1:$C$153,2,FALSE)","v":"2024.05.21"},"2024 한국원자력학회 춘계학술대회"]
[15,"혁신형 소형모듈형 원전에서 정지불능 예상과도시 비상붕소계통에 대한 적용성",{"$f":"VLOOKUP(B16,[1]Sheet1!$B$1:$C$153,2,FALSE)","v":"2024.05.21"},"2024 한국원자력학회 춘계학술대회"]
[16,"APR1000 기반으로 KIMERA 방법론을 이용한 LBLOCA M/E 방출 및 원자로건물 P/T 해석",{"$f":"VLOOKUP(B17,[1]Sheet1!$B$1:$C$153,2,FALSE)","v":"2024.05.22"},"2024 한국원자력학회 춘계학술대회"]
[17,"KIMERA 방법론을 사용한 APR1000 가상 주증기관파단사고 질량 및 에너지 방출 해석",{"$f":"VLOOKUP(B18,[1]Sheet1!$B$1:$C$153,2,FALSE)","v":"2024.05.22"},"2024 한국원자력학회 춘계학술대회"]
[18,"OPR1000 원전의 중대사고 상황에서 원자로건물 내 선원항 계산",{"$f":"VLOOKUP(B19,[1]Sheet1!$B$1:$C$153,2,FALSE)","v":"2024.05.22"},"2024 한국원자력학회 춘계학술대회"]
[19,"SPACE 코드를 이용한 APR1400노형에서 SCS 운전 중 IOECCS 사고의 안전해석",{"$f":"VLOOKUP(B20,[1]Sheet1!$B$1:$C$153,2,FALSE)","v":"2024.05.22"},"2024 한국원자력학회 춘계학술대회"]
[20,"곡관에 대한 파단전누설 평가 연구",{"$f":"VLOOKUP(B21,[1]Sheet1!$B$1:$C$153,2,FALSE)","v":"2024.05.22"},"2024 한국원자력학회 춘계학술대회"]
[21,"비지도학습 기반 키워드 추출을 이용한 추적가능 인허가 질의 응답 DB 구축",{"$f":"VLOOKUP(B22,[1]Sheet1!$B$1:$C$153,2,FALSE)","v":"2024.05.22"},"2024 한국원자력학회 춘계학술대회"]
[22,"연소 가능 수소 질량 및 폭발과압 분석을 통한 원전 연계 수소생산 설비의 안전 이격거리 평가",{"$f":"VLOOKUP(B23,[1]Sheet1!$B$1:$C$153,2,FALSE)","v":"2024.05.22"},"2024 한국원자력학회 춘계학술대회"]
[23,"영역축소법에서의 근역지반과 원역지반 및 유효지진하중의 자동생성기법",{"$f":"VLOOKUP(B24,[1]Sheet1!$B$1:$C$153,2,FALSE)","v":"2024.05.22"},"2024 한국원자력학회 춘계학술대회"]
[24,"EPRI 위험도 평가 프로그램 입력변수에 따른 발생가능성 및 발생영향 점수 분석",{"$f":"VLOOKUP(B25,[1]Sheet1!$B$1:$C$153,2,FALSE)","v":"2024.05.27"},"한국부식방학회 2024년도 춘계학술대회"]
[25,"ToSPACE 프로그램을 활용한 검사대상 물량 선정 기법",{"$f":"VLOOKUP(B26,[1]Sheet1!$B$1:$C$153,2,FALSE)","v":"2024.05.27"},"한국부식방학회 2024년도 춘계학술대회"]
[26,"암모니아 혼소 발전소의 최적 설계를 위한 암모니아 기화공정 분석",{"$f":"VLOOKUP(B27,[1]Sheet1!$B$1:$C$153,2,FALSE)","v":"2024.05.27"},"한국부식방학회 2024년도 춘계학술대회"]
[27,"원전 2차배관 감육평가 신뢰성 개선을 위한 두께 측정 데이터 전처리 방법 개발",{"$f":"VLOOKUP(B28,[1]Sheet1!$B$1:$C$153,2,FALSE)","v":"2024.05.27"},"한국부식방학회 2024년도 춘계학술대회"]
[28,"원전 매설배관 관리시스템의 증강현실 기술 활용방안",{"$f":"VLOOKUP(B29,[1]Sheet1!$B$1:$C$153,2,FALSE)","v":"2024.05.27"},"한국부식방학회 2024년도 춘계학술대회"]
[29,"원전 매설배관 용접이음부의 부식손상 메커니즘에 대한 고찰",{"$f":"VLOOKUP(B30,[1]Sheet1!$B$1:$C$153,2,FALSE)","v":"2024.05.27"},"KOSCO SYMPOSIUM"]
[30,"원자력발전소에서 사용후연료취급지침",{"$f":"VLOOKUP(B31,[1]Sheet1!$B$1:$C$153,2,FALSE)","v":"2024.06.11"},"한국방사성폐기물학회"]
[31,"ASME 코드 피로면제요건을 활용한 시간제한 경년열화 평가",{"$f":"VLOOKUP(B32,[1]Sheet1!$B$1:$C$153,2,FALSE)","v":"2024.06.28"},"대한기계학회 에너지 및 동력공학부문 2024 춘계학술대회"]
[32,"화력발전소 운전이력 데이터와 고압 급수가열기 시뮬레이션 전산모듈을 결합한 열성능 진단 방법론 연구",{"$f":"VLOOKUP(B33,[1]Sheet1!$B$1:$C$153,2,FALSE)","v":"2024.06.28"},"대한기계학회 재료 및 파괴부문 춘계학술대회 논문집"]
[33,"강판콘크리트 구조의 내화성능 검증과 축하중 민감도 검토",{"$f":"VLOOKUP(B34,[1]Sheet1!$B$1:$C$153,2,FALSE)","v":"2024.07.11"},"KCC2024 한국컴퓨터종합학술대회"]
[34,"원자력발전소 안전 관련 디지털 기기의 내환경검증(Environmental qualification) 동향",{"$f":"VLOOKUP(B35,[1]Sheet1!$B$1:$C$153,2,FALSE)","v":"2024.07.11"},"교량및구조공학회논문집"]
[35,"전 가상화를 이용한 레거시 UNIX 응용 프로그램 마이그레이션 테스트 방법론",{"$f":"VLOOKUP(B36,[1]Sheet1!$B$1:$C$153,2,FALSE)","v":"2024.07.11"},"한국압력기기공학회"]
[36,"UAE 현지 전력연계 요건을 고려한 On-site 수소버스충전소 소내계통 구성 방안 고찰",{"$f":"VLOOKUP(B37,[1]Sheet1!$B$1:$C$153,2,FALSE)","v":"2024.07.23"},"제55회 대한전기학회 하계학술대회"]
[37,"독립형 그린수소생산시스템의 전력계통 안정화 방안 연구",{"$f":"VLOOKUP(B38,[1]Sheet1!$B$1:$C$153,2,FALSE)","v":"2024.07.23"},"제55회 대한전기학회 하계학술대회"]
[38,"수소 충전소와 연계된 수소 융복합 마이크로그리드의 최적 제어 운영 방안에 대한 연구",{"$f":"VLOOKUP(B39,[1]Sheet1!$B$1:$C$153,2,FALSE)","v":"2024.07.23"},"제55회 대한전기학회 하계학술대회"]
[39,"CNN-LSTM 혼합모델 기반 리튬이온 배터리의 수명 예측",{"$f":"VLOOKUP(B40,[1]Sheet1!$B$1:$C$153,2,FALSE)","v":"2024.08.13"},"전력기술지"]
[40,"CAP 코드를 이용한 APR 원자로건물 압력 및 온도 분석 방법론 개발",{"$f":"VLOOKUP(B41,[1]Sheet1!$B$1:$C$153,2,FALSE)","v":"2024.08.14"},"전력기술지"]
[41,"CE-KDL 실험에 대한 SPACE 코드 모사",{"$f":"VLOOKUP(B42,[1]Sheet1!$B$1:$C$153,2,FALSE)","v":"2024.08.14"},"Journal of Mechanical Science and Technology"]
[42,"OPR1000 발전소제어계통 설계변경 사례 소개",{"$f":"VLOOKUP(B43,[1]Sheet1!$B$1:$C$153,2,FALSE)","v":"2024.08.14"},"전력기술지"]
[43,"Scene Text Detector와 Bounding Box 병합을 활용한 Text Labeling",{"$f":"VLOOKUP(B44,[1]Sheet1!$B$1:$C$153,2,FALSE)","v":"2024.08.14"},"전력기술지"]
[44,"SOEC 및 SOFC용 상용 밀봉재 평가 방법에 대한 고찰",{"$f":"VLOOKUP(B45,[1]Sheet1!$B$1:$C$153,2,FALSE)","v":"2024.08.14"},"전력기술지"]
[45,"규제지침서 1.183 개정본 (Rev.1) 적용 시 부지경계 설정에 미치는 영향 고찰","2024.08.14","전력기술지"]
[46,"동적진단시험 시 밸브 손상예방을 위한 유체 유동조건",{"$f":"VLOOKUP(B47,[1]Sheet1!$B$1:$C$153,2,FALSE)","v":"2024.08.14"},"전력기술지"]
[47,"발전소 건축물 BIPV(건물일체형 태양광) 적용 검토","2024.08.14","전력기술지"]
[48,"새울3,4호기 LUHS/ELAP+LUHS 시의 보조충전펌프 기기생존성평가","2024.08.14","전력기술지"]
[49,"설계확장조건 DEC-A 해석방법론 및 허용기준",{"$f":"VLOOKUP(B50,[1]Sheet1!$B$1:$C$153,2,FALSE)","v":"2024.08.14"},"전력기술지"]
[50,"옥내저탄장 스마트 안전관리 시스템 적용에 대한 고찰",{"$f":"VLOOKUP(B51,[1]Sheet1!$B$1:$C$153,2,FALSE)","v":"2024.08.14"},"전력기술지"]
[51,"원자력발전소 운전 및 기상데이터를 활용한 송전전력 예측을 위한 데이터분석",{"$f":"VLOOKUP(B52,[1]Sheet1!$B$1:$C$153,2,FALSE)","v":"2024.08.14"},"전력기술지"]
[52,"원자력발전소 주제어실 하부 이중마루 일체형 통합 전선로 적용성 검토",{"$f":"VLOOKUP(B53,[1]Sheet1!$B$1:$C$153,2,FALSE)","v":"2024.08.14"},"전력기술지"]
[53,"원전 특화 현장 구조진입 및 피난 훈련시스템 연구",{"$f":"VLOOKUP(B54,[1]Sheet1!$B$1:$C$153,2,FALSE)","v":"2024.08.14"},"전력기술지"]
[54,"원전 해체시 실시간 방사선작업종사자 안전관리 플랫폼 개요",{"$f":"VLOOKUP(B55,[1]Sheet1!$B$1:$C$153,2,FALSE)","v":"2024.08.14"},"전력기술지"]
[55,"유럽과 미국의 후설치 확장형 앵커 최신 설계기준(EN1992-4:2018, ACI 318-19) 비교","2024.08.14","전력기술지"]
[56,"준안정 상태의 물과 증기에 대한 물성치 산출방법 평가",{"$f":"VLOOKUP(B57,[1]Sheet1!$B$1:$C$153,2,FALSE)","v":"2024.08.14"},"전력기술지"]
[57,"측정온도 데이터에 확률론적 접근법을 사용한 고온관 안전주입 배관의 공식 기반 열성층 해석","2024.08.14","ASME 2024 Pressure Vessels & Piping Conference"]
[58,"터빈건물 외장재 설계용 풍동실험 결과 고찰",{"$f":"VLOOKUP(B59,[1]Sheet1!$B$1:$C$153,2,FALSE)","v":"2024.08.14"},"전력기술지"]
[59,"특고압 수전설비 접지 계산서 작성 방법 고찰",{"$f":"VLOOKUP(B60,[1]Sheet1!$B$1:$C$153,2,FALSE)","v":"2024.08.14"},"전력기술지"]
[60,"iSMR 원자로보호건물의 매개변수에 의한 지진응답해석",{"$f":"VLOOKUP(B61,[1]Sheet1!$B$1:$C$153,2,FALSE)","v":"2024.10.02"},"한국지진공학회"]
[61,"원전의 성능기반 내진설계를 위한 확률론적 지진해석 평가",{"$f":"VLOOKUP(B62,[1]Sheet1!$B$1:$C$153,2,FALSE)","v":"2024.10.02"},"한국지진공학회"]
[62,"중대사고 시 보조건물 내 작업자 피폭선량 평가 방법론 개발",{"$f":"VLOOKUP(B63,[1]Sheet1!$B$1:$C$153,2,FALSE)","v":"2024.10.02"},"방사선산업학회지"]
[63,"3차원 유한요소법을 통한 확률론적 극한내압성능 향상",{"$f":"VLOOKUP(B64,[1]Sheet1!$B$1:$C$153,2,FALSE)","v":"2024.10.29"},"2024 추계 대한토목학회 학술발표"]
[64,"정착부 콘크리트 파손 지진취약도 평가 시 ACI 349 코드에 내재된 보수성",{"$f":"VLOOKUP(B65,[1]Sheet1!$B$1:$C$153,2,FALSE)","v":"2024.10.29"},"2024 추계 대한토목학회 학술발표"]
[65,"1000 MW급 개량형경수로의 정지냉각계통 설계변경에 대한 고찰",{"$f":"VLOOKUP(B66,[1]Sheet1!$B$1:$C$153,2,FALSE)","v":"2024.10.30"},"International Conference on Small Modular Reactors and their Applications"]
[66,"1D CFD를 이용한 오리피스 조정 방법론 예측 연구",{"$f":"VLOOKUP(B67,[1]Sheet1!$B$1:$C$153,2,FALSE)","v":"2024.10.30"},"Korean Nuclear Society"]
[67,"APR1000 가상 주증기관파단사고 시 피동보조급수계통이 질량 및 에너지 방출에 미치는 영향 연구",{"$f":"VLOOKUP(B68,[1]Sheet1!$B$1:$C$153,2,FALSE)","v":"2024.10.30"},"2024 한국원자력학회 추계학술발표회"]
[68,"APR1000 노형에 대한 초기PSA 기반 지진재해도A 평가방법 및 결과",{"$f":"VLOOKUP(B69,[1]Sheet1!$B$1:$C$153,2,FALSE)","v":"2024.10.30"},"2024 한국원자력학회 추계학술발표회"]
[69,"CONTEMPT-LT/028 을 이용한 이중원자로건물 압력 및 온도 분석 방법론 개발",{"$f":"VLOOKUP(B70,[1]Sheet1!$B$1:$C$153,2,FALSE)","v":"2024.10.30"},"2024 한국원자력학회 추계학술발표회"]
[70,"DCH 하중 예측용 TCE 모델 수정",{"$f":"VLOOKUP(B71,[1]Sheet1!$B$1:$C$153,2,FALSE)","v":"2024.10.30"},"2024 한국원자력학회 추계학술발표회"]
[71,"IAEA SSR-2/1 및 EUR Rev-E 요건에 기반한 APR1000 노형의 Level 2 PSA 분석 방법",{"$f":"VLOOKUP(B72,[1]Sheet1!$B$1:$C$153,2,FALSE)","v":"2024.10.30"},"2024 한국원자력학회 추계학술발표회"]
[72,"SMR을 위한 안전 및 비안전 소프트제어기의 실질적 통합설계",{"$f":"VLOOKUP(B73,[1]Sheet1!$B$1:$C$153,2,FALSE)","v":"2024.10.30"},"2024 한국원자력학회 추계학술발표회"]
[73,"레일 클램프 수에 따른 레일 영향성에 대한 고찰",{"$f":"VLOOKUP(B74,[1]Sheet1!$B$1:$C$153,2,FALSE)","v":"2024.10.30"},"2024 한국원자력학회 추계학술발표회"]
[74,"비상노심배럴덕트 형상 효과에 따른 APR1000 원형 원자로 노심유동분포에 대한 수치해석",{"$f":"VLOOKUP(B75,[1]Sheet1!$B$1:$C$153,2,FALSE)","v":"2024.10.30"},"2024 한국원자력학회 추계학술발표회"]
[75,"비상운전지침 사고 진단을 위한 SPADES+ 활용성 연구",{"$f":"VLOOKUP(B76,[1]Sheet1!$B$1:$C$153,2,FALSE)","v":"2024.10.30"},"2024 한국원자력학회 추계학술발표회"]
[76,"소형모듈형원전의 화학 및 체적제어계통 열교환기 소형화 설계",{"$f":"VLOOKUP(B77,[1]Sheet1!$B$1:$C$153,2,FALSE)","v":"2024.10.30"},"2024 한국원자력학회 추계학술발표회"]
[77,"수소융복합 마이크로그리드의 독립운전모드를 위한 ESS 적용 검토",{"$f":"VLOOKUP(B78,[1]Sheet1!$B$1:$C$153,2,FALSE)","v":"2024.10.30"},"2024 한국원자력학회 추계학술발표회"]
[78,"원전 위해도 평가를 위한 수소 기체 Jet/Plume 및 폭발 수소기체 질량 계산 방법론",{"$f":"VLOOKUP(B79,[1]Sheet1!$B$1:$C$153,2,FALSE)","v":"2024.10.30"},"2024 한국원자력학회 추계학술발표회"]
[79,"중대사고시 보조건물 격실의 선원항 평가를 위한 MAAP 모델 개발",{"$f":"VLOOKUP(B80,[1]Sheet1!$B$1:$C$153,2,FALSE)","v":"2024.10.30"},"2024 한국원자력학회 추계학술발표회"]
[80,"화재 PSA 최신 방법론을 적용한 전기인클로저의 심각도 계산 방법 연구",{"$f":"VLOOKUP(B81,[1]Sheet1!$B$1:$C$153,2,FALSE)","v":"2024.10.30"},"대한전기학회 전력기술부문회 추계학술대회"]
[81,"325℃ 이상의 온도에 대한 환경 피로 영향",{"$f":"VLOOKUP(B82,[1]Sheet1!$B$1:$C$153,2,FALSE)","v":"2024.11.11"},"31 WiN Global Annual Conference"]
[82,"APR1400 원전 중형냉각재상실사고 시 보론석출 평가",{"$f":"VLOOKUP(B83,[1]Sheet1!$B$1:$C$153,2,FALSE)","v":"2024.11.11"},"전력기술지"]
[83,"APR1400 최종열제거원 상실사고 복구 전략",{"$f":"VLOOKUP(B84,[1]Sheet1!$B$1:$C$153,2,FALSE)","v":"2024.11.11"},"전력기술지"]
[84,"AUTOCAD PLANT 3D를 활용한 배관 설계 적용 사례 소개",{"$f":"VLOOKUP(B85,[1]Sheet1!$B$1:$C$153,2,FALSE)","v":"2024.11.11"},"전력기술지"]
[85,"BIM 기반 생성설계를 활용한 주민친화형 SMR 외피 설계",{"$f":"VLOOKUP(B86,[1]Sheet1!$B$1:$C$153,2,FALSE)","v":"2024.11.11"},"전력기술지"]
[86,"CANDU 중수로 월성2,3,4호기 케이블 화염시험 Code 요건검토","2024.11.11","전력기술지"]
[87,"COMCOT 수치모델의 지진해일 모의 적용성 검토",{"$f":"VLOOKUP(B88,[1]Sheet1!$B$1:$C$153,2,FALSE)","v":"2024.11.11"},"전력기술지"]
[88,"EPC 프로젝트에서의 3D 모델링 기반 입찰설계 구현 방안 연구",{"$f":"VLOOKUP(B89,[1]Sheet1!$B$1:$C$153,2,FALSE)","v":"2024.11.11"},"전력기술지"]
[89,"Free Air Cable 포설 공간 확보 방안",{"$f":"VLOOKUP(B90,[1]Sheet1!$B$1:$C$153,2,FALSE)","v":"2024.11.11"},"전력기술지"]
[90,"LSTM 모델을 이용한 수소 충전소의 일일 수소 판매량 예측 연구",{"$f":"VLOOKUP(B91,[1]Sheet1!$B$1:$C$153,2,FALSE)","v":"2024.11.11"},"전력기술지"]
[91,"OPR1000 원전 극한내압능력 평가 및 취약부 국부모델 개발",{"$f":"VLOOKUP(B92,[1]Sheet1!$B$1:$C$153,2,FALSE)","v":"2024.11.11"},"한국수소및신에너지학회논문집"]
[92,"가동원전 미활용에너지 활용을 위한 카르노 배터리 기술개발 동향 분석",{"$f":"VLOOKUP(B93,[1]Sheet1!$B$1:$C$153,2,FALSE)","v":"2024.11.11"},"전력기술지"]
[93,"가동원전 터빈 제어 및 비상정지계통 개선 설계용역 현황",{"$f":"VLOOKUP(B94,[1]Sheet1!$B$1:$C$153,2,FALSE)","v":"2024.11.11"},"전력기술지"]
[94,"내부사건 PSA 현장조사 시트 개발",{"$f":"VLOOKUP(B95,[1]Sheet1!$B$1:$C$153,2,FALSE)","v":"2024.11.11"},"전력기술지"]
[95,"누적선량 평가 시 NUREG/CR-6604 기하학적 보정인자의 적용",{"$f":"VLOOKUP(B96,[1]Sheet1!$B$1:$C$153,2,FALSE)","v":"2024.11.11"},"전력기술지"]
[96,"다수호기 터빈 비산물 분석",{"$f":"VLOOKUP(B97,[1]Sheet1!$B$1:$C$153,2,FALSE)","v":"2024.11.11"},"전력기술지"]
[97,"데이터기반 3차원 모델 설계검증 시스템(TDVS) 개발",{"$f":"VLOOKUP(B98,[1]Sheet1!$B$1:$C$153,2,FALSE)","v":"2024.11.11"},"전력기술지"]
[98,"데이터기반설계시스템과 배관응력해석 프로그램 연동화",{"$f":"VLOOKUP(B99,[1]Sheet1!$B$1:$C$153,2,FALSE)","v":"2024.11.11"},"전력기술지"]
[99,"디지털 기반 안전 I&C 계통의 이용률 향상 고찰",{"$f":"VLOOKUP(B100,[1]Sheet1!$B$1:$C$153,2,FALSE)","v":"2024.11.11"},"전력기술지"]
[100,"머신 러닝에 경험 법칙을 활용한 복합화력발전소 전력 예측 모델의 성능 비교",{"$f":"VLOOKUP(B101,[1]Sheet1!$B$1:$C$153,2,FALSE)","v":"2024.11.11"},"전력기술지"]
[101,"엔지니어링 문제해결 및 지식전이를 위한 스페셜리스트 제도 고찰",{"$f":"VLOOKUP(B102,[1]Sheet1!$B$1:$C$153,2,FALSE)","v":"2024.11.11"},"전력기술지"]
[102,"머신러닝을 활용한 기기의 EMI 상태진단",{"$f":"VLOOKUP(B103,[1]Sheet1!$B$1:$C$153,2,FALSE)","v":"2024.11.12"},"전력기술지"]
[103,"발전소 건축물 녹색건축 인증을 위한 설계 검토",{"$f":"VLOOKUP(B104,[1]Sheet1!$B$1:$C$153,2,FALSE)","v":"2024.11.12"},"전력기술지"]
[104,"발전소 비접지 전력계통의 과전압 및 영향 요소 소개",{"$f":"VLOOKUP(B105,[1]Sheet1!$B$1:$C$153,2,FALSE)","v":"2024.11.12"},"전력기술지"]
[105,"부구조법 방법론과 유효지진력 산정론 및 사례연구",{"$f":"VLOOKUP(B106,[1]Sheet1!$B$1:$C$153,2,FALSE)","v":"2024.11.12"},"전력기술지"]
[106,"비상디젤발전기 연료유 저장/일일탱크 통기관 등급분류 적절성 검토",{"$f":"VLOOKUP(B107,[1]Sheet1!$B$1:$C$153,2,FALSE)","v":"2024.11.12"},"전력기술지"]
[107,"비상디젤발전기실의 미분무소화설비 적용을 위한 화재시험 및 결과 고찰",{"$f":"VLOOKUP(B108,[1]Sheet1!$B$1:$C$153,2,FALSE)","v":"2024.11.12"},"전력기술지"]
[108,"사용후핵연료 건식저장시설",{"$f":"VLOOKUP(B109,[1]Sheet1!$B$1:$C$153,2,FALSE)","v":"2024.11.12"},"전력기술지"]
[109,"사이버보안 심층방호 전략에 대한 고찰",{"$f":"VLOOKUP(B110,[1]Sheet1!$B$1:$C$153,2,FALSE)","v":"2024.11.12"},"전력기술지"]
[110,"시공관리기준공정표의 구역별 인계·인수 Activity 도입",{"$f":"VLOOKUP(B111,[1]Sheet1!$B$1:$C$153,2,FALSE)","v":"2024.11.12"},"전력기술지"]
[111,"실적데이터 기반 원전건설 시운전공정표 표준로직 개발",{"$f":"VLOOKUP(B112,[1]Sheet1!$B$1:$C$153,2,FALSE)","v":"2024.11.12"},"전력기술지"]
[112,"알칼라인 수전해 시스템의 공정해석 모델 개발 및 결과 분석",{"$f":"VLOOKUP(B113,[1]Sheet1!$B$1:$C$153,2,FALSE)","v":"2024.11.12"},"전력기술지"]
[113,"액상화 저항 말뚝 설계 방법 소개",{"$f":"VLOOKUP(B114,[1]Sheet1!$B$1:$C$153,2,FALSE)","v":"2024.11.12"},"전력기술지"]
[114,"원자력 발전소 기기검증 진동노화 요건에 대한 고찰",{"$f":"VLOOKUP(B115,[1]Sheet1!$B$1:$C$153,2,FALSE)","v":"2024.11.12"},"전력기술지"]
[115,"원전 기술개발사업 공정표 체계 검토",{"$f":"VLOOKUP(B116,[1]Sheet1!$B$1:$C$153,2,FALSE)","v":"2024.11.12"},"전력기술지"]
[116,"원전에서 핵연료취급 이벤트에 대한 고찰",{"$f":"VLOOKUP(B117,[1]Sheet1!$B$1:$C$153,2,FALSE)","v":"2024.11.12"},"한국방사성폐기물학회"]
[117,"자가복원형 점성감쇠기 시스템 개발 및 성능시험을 통한 검증",{"$f":"VLOOKUP(B118,[1]Sheet1!$B$1:$C$153,2,FALSE)","v":"2024.11.12"},"전력기술지"]
[118,"종합정비공작건물 지열이용 열펌프설비의 적용",{"$f":"VLOOKUP(B119,[1]Sheet1!$B$1:$C$153,2,FALSE)","v":"2024.11.12"},"전력기술지"]
[119,"중대사고시 APR1000 이중원자로건물 온도 및 압력변화 분석","2024.11.12","전력기술지"]
[120,"해상풍력 하부지지구조물 형식선정 방안에 대한 고찰",{"$f":"VLOOKUP(B121,[1]Sheet1!$B$1:$C$153,2,FALSE)","v":"2024.11.12"},"전력기술지"]
[121,"화력 발전소내 전력계통 단락용량 고찰",{"$f":"VLOOKUP(B122,[1]Sheet1!$B$1:$C$153,2,FALSE)","v":"2024.11.12"},"전력기술지"]
[122,"3D 모델링을 이용한 매설배관 결함 위치에 따른 전위구배 영향 분석",{"$f":"VLOOKUP(B123,[1]Sheet1!$B$1:$C$153,2,FALSE)","v":"2024.11.18"},"대한기계학회 2024년 학술대회"]
[123,"OPR1000원전 다양성보호계통 설비보강",{"$f":"VLOOKUP(B124,[1]Sheet1!$B$1:$C$153,2,FALSE)","v":"2024.11.18"},"The Symposium for Nuclear Power Plant Instrumentation and Control"]
[124,"RCOPS(원자로노심보호계통) CEA 위치신호 전송경로 설계 개선","2024.11.18","The Symposium for Nuclear Power Plant Instrumentation and Control"]
[125,"디지털 안전등급 I&C 계통의 CCF 대응을 위한 심층방어 및 다양성 (D3) 계통설계",{"$f":"VLOOKUP(B126,[1]Sheet1!$B$1:$C$153,2,FALSE)","v":"2024.11.18"},"The Symposium for Nuclear Power Plant Instrumentation and Control"]
[126,"배관감육 관리 신뢰도 향상을 위한 검사 사각지대 해소 방안",{"$f":"VLOOKUP(B127,[1]Sheet1!$B$1:$C$153,2,FALSE)","v":"2024.11.18"},"The Symposium for Nuclear Power Plant Instrumentation and Control"]
[127,"새울1발 Rosemount 압력전송기 대체품 교체[PPS, DPS, COLSS]","2024.11.18","The Symposium for Nuclear Power Plant Instrumentation and Control"]
[128,"소형모듈 원전에서 정지불능예상과도에 대한 열수력 분석",{"$f":"VLOOKUP(B129,[1]Sheet1!$B$1:$C$153,2,FALSE)","v":"2024.11.18"},"The 13th Korea-Japan Symposium on Nuclear Thermal Hydraulics and Safety"]
[129,"원자력 발전소 배관 감육 평가의 불확실성 저감 방법 연구",{"$f":"VLOOKUP(B130,[1]Sheet1!$B$1:$C$153,2,FALSE)","v":"2024.11.18"},"The 13th Korea-Japan Symposium on Nuclear Thermal Hydraulics and Safety"]
[130,"해양 SMR 동력 변환 계통의 열평형도 시뮬레이션 및 분석",{"$f":"VLOOKUP(B131,[1]Sheet1!$B$1:$C$153,2,FALSE)","v":"2024.11.18"},"한국부식방식학회 2024 추계학술대회"]
[131,"혁신형 SMR의 소형냉각재상실사고와 동시에 발생하는 ECCS상실사고 평가",{"$f":"VLOOKUP(B132,[1]Sheet1!$B$1:$C$153,2,FALSE)","v":"2024.11.18"},"한국부식방식학회 2024 추계학술대회"]
[132,"혁신형 SMR의 최종열제거원상실사고 완화전략에 대한 연구",{"$f":"VLOOKUP(B133,[1]Sheet1!$B$1:$C$153,2,FALSE)","v":"2024.11.22"},"한국부식방식학회 2024 추계학술대회"]
[133,"2차계통 배관 감육측정 오류데이터 판별 알고리즘 개발",{"$f":"VLOOKUP(B134,[1]Sheet1!$B$1:$C$153,2,FALSE)","v":"2024.12.02"},"한국압력기기공학회"]
[134,"APR1400 원자로압력용기의 기술고유화 검토","2024.12.02","한국압력기기공학회"]
[135,"ASME BPVC Sec. III 배관설계요건 제개정 동향",{"$f":"VLOOKUP(B136,[1]Sheet1!$B$1:$C$153,2,FALSE)","v":"2024.12.02"},"한국압력기기공학회"]
[136,"간략모델 기반 전열관 진동해석 전산모듈 구축을 위한 예비분석",{"$f":"VLOOKUP(B137,[1]Sheet1!$B$1:$C$153,2,FALSE)","v":"2024.12.02"},"한국압력기기공학회"]
[137,"고장통지 이력 데이터를 활용한 설비고장 특이성 분석방법론 고찰",{"$f":"VLOOKUP(B138,[1]Sheet1!$B$1:$C$153,2,FALSE)","v":"2024.12.02"},"한국압력기기공학회"]
[138,"국내 중수로형 칼란드리아관의 처짐 및 간섭 평가사례",{"$f":"VLOOKUP(B139,[1]Sheet1!$B$1:$C$153,2,FALSE)","v":"2024.12.02"},"한국압력기기공학회"]
[139,"국내부지 밀집배열 지진계측기반 상관성함수 개발",{"$f":"VLOOKUP(B140,[1]Sheet1!$B$1:$C$153,2,FALSE)","v":"2024.12.02"},"한국압력기기공학회"]
[140,"배관 두께 측정 데이터 전처리 알고리즘의 실제 원자력 발전소 데이터기반 성능 분석",{"$f":"VLOOKUP(B141,[1]Sheet1!$B$1:$C$153,2,FALSE)","v":"2024.12.02"},"한국압력기기공학회"]
[141,"압력용기의 구형헤드와 타원형헤드 비교",{"$f":"VLOOKUP(B142,[1]Sheet1!$B$1:$C$153,2,FALSE)","v":"2024.12.02"},"한국압력기기공학회"]
[142,"원자로건물내 재장전수탱크의 고농도 수소축적 방지를 위한 중대사고 급속감압밸브류 가용성 평가",{"$f":"VLOOKUP(B143,[1]Sheet1!$B$1:$C$153,2,FALSE)","v":"2024.12.02"},"2024년 한국정보기술학회 추계학술대회"]
[143,"원전설계 품질향상 및 형상관리 활용을 위한 딥러닝/AI 활용기술 개발현황 소개",{"$f":"VLOOKUP(B144,[1]Sheet1!$B$1:$C$153,2,FALSE)","v":"2024.12.02"},"한국압력기기공학회"]
[144,"종합진동평가 진동해석을 위한 APR1400 원자로내부구조물 동특성 분석",{"$f":"VLOOKUP(B145,[1]Sheet1!$B$1:$C$153,2,FALSE)","v":"2024.12.02"},"한국압력기기공학회"]
[145,"해석에 의한 설계와 규칙에 의한 설계를 통한 KEPIC MNB 검토",{"$f":"VLOOKUP(B146,[1]Sheet1!$B$1:$C$153,2,FALSE)","v":"2024.12.02"},"한국압력기기공학회"]
[146,"혁신형 SMR 내진설계를 위한 원자로집합체 동특성 분석",{"$f":"VLOOKUP(B147,[1]Sheet1!$B$1:$C$153,2,FALSE)","v":"2024.12.02"},"한국압력기기공학회"]
[147,"다중 Agent와 반복적 답변 생성·평가 기법을 적용한 사규 검색용 Self-Corrective RAG 시스템 연구",{"$f":"VLOOKUP(B148,[1]Sheet1!$B$1:$C$153,2,FALSE)","v":"2024.12.03"},"한국압력기기공학회"]
[148,"경제성을 고려한 그린 수소생산시스템 최적 설비용량에 관한 연구",{"$f":"VLOOKUP(B149,[1]Sheet1!$B$1:$C$153,2,FALSE)","v":"2024.12.11"},"대한방사선방어학회"]
[149,"원자력 발전소 기기 내진해석 자동화에 대한 연구",{"$f":"VLOOKUP(B150,[1]Sheet1!$B$1:$C$153,2,FALSE)","v":"2024.12.11"},"한국CDE학회"]
[150,"원자로 출력 운전 조건에서 혁신형 SMR의 에너지 재분포 인자(ERF) 평가",{"$f":"VLOOKUP(B151,[1]Sheet1!$B$1:$C$153,2,FALSE)","v":"2024.12.11"},"한국수소및신에너지학회 2024년 추계 학술대회 논문집"]
[151,"원전 연계를 위한 10MW급 SOEC 수전해시스템의 공정 분석",{"$f":"VLOOKUP(B152,[1]Sheet1!$B$1:$C$153,2,FALSE)","v":"2024.12.11"},"한국수소및신에너지학회 2024년 추계 학술대회 논문집"]
[152,"혼합정수계획법을 활용한 해상풍력단지 정비 플래닝 프레임워크 개발",{"$f":"VLOOKUP(B153,[1]Sheet1!$B$1:$C$153,2,FALSE)","v":"2024.12.11"},"Applied Energy"]
[153,"딥러닝 기반 배관 Isometric 도면 객체 인식 및 설계 정보 추출 연구","2024.12.13","대한기계학회논문집A"]
[154,"3D 모델링을 이용한 매설배관 결함 위치에 따른 전위구배 영향 분석","2025.01.07","CORROSION SCIENCE AND TECHNOLOGY"]
[155,"3D스캐닝 기반 가동원전기기 유한요소모델 개발","2025.01.07","전력기술지"]
[156,"3차원 위치 정보에 기반한 원자력발전소의 전선관 설계 도면 자동 생성 방법 및 시스템 개발","2025.01.07","전력기술지"]
[157,"ASME O&M Part 3 탄소강 재질 진동 허용응력 개정에 대한 영향 검토","2025.01.07","전력기술지"]
[158,"DPG 기반 PWROG SAMG 개요 및 국내 적용 방안","2025.01.07","전력기술지"]
[159,"EMTP-RV를 이용한 그리드포밍 인버터 모델링 및 주파수 제어방식별 분석","2025.01.07","전력기술지"]
[160,"HVSR을 이용한 한반도 지진관측소의 VS30 추정 모델 개발","2025.01.07","전력기술지"]
[161,"KEPCO E&C ISO 19443 인증 취득 실무해설","2025.01.07","전력기술지"]
[162,"MAAP-SMR 전산코드를 이용한 혁신형 소형모듈원자로 중대사고 분석 방법론","2025.01.07","전력기술지"]
[163,"Monte Carlo Simulation을 이용한 확률론적 Specific cost 계산 방법","2025.01.07","전력기술지"]
[164,"NEI 12-02 적용을 위한 사용후연료저장조 수위계측설비","2025.01.07","전력기술지"]
[165,"PHC 말뚝 속채움 콘크리트 깊이 산정에 대한 고찰","2025.01.07","전력기술지"]
[166,"RAG를 이용한 LLM 기반의 Reg. Guide 질의 응답 기술","2025.01.07","전력기술지"]
[167,"Semantic Segmentation 알고리즘 기반의 매설 배관 피복 결함탐지 기법 연구","2025.01.07","전력기술지"]
[168,"SMR 배관 재료선정 방법론에 대한 고찰","2025.01.07","전력기술지"]
[169,"SMR 복합건물 Steel Stack 개념 설계","2025.01.07","전력기술지"]
[170,"VBA를 활용한 CONGEN FOR SPACE 개발","2025.01.07","전력기술지"]
[171,"가동원전 설계변경 업무의 체계적 관리 방안 수립","2025.01.07","전력기술지"]
[172,"가스터빈 연소기 동압감시 센서 선정에 대한 고찰","2025.01.07","전력기술지"]
[173,"가압경수형 원전 연계 고온수전해 시설 설계 개념 검토","2025.01.07","전력기술지"]
[174,"객체 인식을 활용한 재료시험성적서 화학조성 정보 추출 방안","2025.01.07","전력기술지"]
[175,"고압 수소 저장시설의 수소 폭발에 의한 과압 해석 방법론","2025.01.07","전력기술지"]
[176,"공정계측용 현장스위치의 접점 표기 및 개선 방안에 대한 고찰","2025.01.07","전력기술지"]
[177,"국내 원전과 방폐장 인허가 절차의 비교","2025.01.07","전력기술지"]
[178,"그린 암모니아 생산설비의 구축과 최적화","2025.01.07","전력기술지"]
[179,"금속유도용융설비 유형 기술 검토","2025.01.07","전력기술지"]
[180,"기체유출물방사선감시계통 대표시료 채취설계 개선방안","2025.01.07","전력기술지"]
[181,"내진 범주 1급 계측 감지관 규제 및 기술 지침","2025.01.07","전력기술지"]
[182,"높은 직류성분 포함 고장전류와 차단기 용량 적합성 검토 방법","2025.01.07","전력기술지"]
[183,"단락전류에 견디는 케이블 최소 길이에 대한 고찰","2025.01.07","전력기술지"]
[184,"리스크기반 안전등급 분류 I&C 기술적용 검토","2025.01.07","전력기술지"]
[185,"발전소 기기냉각수를 이용한 연료용 암모니아 기화 장치 및 방법","2025.01.07","전력기술지"]
[186,"발전소 환경의 공간정보 수집을 위한 자율주행 로봇플랫폼 구축방안","2025.01.07","전력기술지"]
[187,"방사선방호 관점에서의 다중고장사고 관련 규제요건 개정(2023)에 관한 고찰","2025.01.07","전력기술지"]
[188,"방화문 시험 기술기준 NFPA 252와 UL 10C의 비교 평가","2025.01.07","전력기술지"]
[189,"배터리 가속 노화 데이터를 활용한 SOH 예측 모델 개발 및 성능 평가","2025.01.07","전력기술지"]
[190,"비정형 문서 디지털 변환 고도화를 위한 문서 구조 분석 기술 연구","2025.01.07","전력기술지"]
[191,"비표준원전 급수계통 열성층화 현상 평가","2025.01.07","전력기술지"]
[192,"사고 진단을 고려한 발전소 안전변수지시 및 평가프로그램 설계 및 구현","2025.01.07","전력기술지"]
[193,"사용후핵연료 건식저장시설 GA 개발을 위한 설계 고려사항","2025.01.07","전력기술지"]
[194,"설계기준 별 응답변위법을 이용한 지진토압 산정에 관한 연구","2025.01.07","전력기술지"]
[195,"소형 원자로 설계를 위한 공기정화기 크기 최적화 방안","2025.01.07","전력기술지"]
[196,"수소경제 시대를 위한 천연수소 기술현황 소개","2025.01.07","전력기술지"]
[197,"순환수펌프의 에너지 절감을 위한 인버터 제어 설비 적용 검토","2025.01.07","전력기술지"]
[198,"신한울 2호기 원자로냉각재계통 유량측정시험 평가결과","2025.01.07","전력기술지"]
[199,"알루미노실리케이트(지오폴리머)를 이용한 원자력발전소 방사성폐기물 고화 기술 소개","2025.01.07","전력기술지"]
[200,"암모니아 환경에서의 금속재료 특성 및 거동","2025.01.07","전력기술지"]
[201,"암모니아/수소 혼소 가스터빈에 연료 공급 최신기술 동향","2025.01.07","전력기술지"]
[202,"압축과 전단을 받는 앵커에 대한 고찰","2025.01.07","전력기술지"]
[203,"양수발전 계획시 주요 고려사항 및 설계 주요 항목","2025.01.07","전력기술지"]
[204,"원자력 발전소 배관 두께 측정 데이터기반 전처리 방법론의 성능 평가","2025.01.07","전력기술지"]
[205,"원자력기기의 재료 선정 및 시험요건","2025.01.07","전력기술지"]
[206,"원자로건물 공극 구조건전성 평가","2025.01.07","전력기술지"]
[207,"원자로건물 포스트텐셔닝 시스템 내구성 향상을 위한 피복텐던 시스템 소개","2025.01.07","전력기술지"]
[208,"원자로시설 부지 선정 시 기상청 자료를 활용한 Pasquill 대기안정도 계산","2025.01.07","전력기술지"]
[209,"인허가 질의답변 및 규제요건 검토를 위한 AI 활용","2025.01.07","전력기술지"]
[210,"장거리 해저 케이블의 지연된 전류 영점 교차 현상에 대한 고찰","2025.01.07","전력기술지"]
[211,"재사용 배터리 기반 ESS 피크저감형 운영을 위한 PSO 알고리즘 적용 고찰","2025.01.07","전력기술지"]
[212,"정착부 설계 및 평가를 위한 운전기준지진 하중계수 적용에 관한 고찰","2025.01.07","전력기술지"]
[213,"진동수영역 및 시간영역 지반-구조물 상호작용 해석을 위한 자동생성 전처리 기법","2025.01.07","전력기술지"]
[214,"철근 열화에 따른 철근 단면적 감소에 대한 평가방법 연구","2025.01.07","전력기술지"]
[215,"충전기 단락전류 기여 특성 변경에 따른 발전소 직류 계통 설계 영향 검토","2025.01.07","전력기술지"]
[216,"파일럿 포인트 방법을 적용한 지하수 관측정 후보지 선정 방법","2025.01.07","전력기술지"]
[217,"폭파 하중을 받는 구조물 해석에 대한 인공지능 알고리즘 적용 방안","2025.01.07","전력기술지"]
[218,"플라스틱 케이블 트레이 적용에 대한 검토","2025.01.07","전력기술지"]
[219,"하이브리드/융복합 발전기술의 경제성 평가","2025.01.07","전력기술지"]
[220,"항공기 충돌 각도에 따른 하중 비교 연구","2025.01.07","전력기술지"]
[221,"해양에너지 연계 수소생산설비 시스템 최적화 설계","2025.01.07","전력기술지"]